{"text_format":"1","workbook":"xlsx","n_sheets":9,"sheets":["Ohjeet","1.Lähtötiedot","2.Suunnittelu","3.Tulokset","Optimointi 1","Optimointi 2","Ruokintasuositukset ja tuet","Tuotantokustannus","Rakennus- ja koneluettelo"],"not_rendered":{"charts":0,"images":1,"macros":1,"external_links":0,"defined_names":77,"comments":0,"pivot_tables":0},"unopened":[],"bounds":{"document_bytes":16777216,"sheet_cells":100000,"rows_first":2000,"rows_last":500,"rows_between":2000,"halvings":0,"cell_chars":16384,"cell_head_chars":4096},"cells_cut":0,"cells_raw":0,"read":"whole","date_system":"1900"}

{"sheet":"Ohjeet","index":0,"n_rows":83,"n_cols":6,"rows_kept":83,"cut":false,"hidden":false,"merged":[[28,1,28,3],[49,1,49,2]]}
[]
[null,"Lihanaudan ruokinnan optimointi loppukasvatuskaudella"]
[null,"Työkalu kasvatuksen kannattavuuden vertailuun eri kasvatusajoilla"]
[]
[null,"Työkalun tarkoitus on helpoittaa naudanlihantuottajaa valitsemaan taloudellisin kasvatustehokkuus maitorotuisten sonnien loppukasvatukseen. "]
[]
[null,"Laskuri vaatii toimiakseen Microsoft Excel 2007:n tai uudemman. Toiminta muissa taulukkolaskentaohjelmissa ei ole varmaa."]
[null,"Excelin Ratkaisin tulee olla asennettuna, jotta laskuri toimisi oikein. "]
[null,null,"Mikäli Ratkaisinta ei löydy Tiedot-välilehdeltä, katso asennusohjeet tämän sivun alareunasta."]
[null,"Laskuri on toteutettu Excel- ohjelman alareunassa näkyviin välilehtiin."]
[null,"Mukaan on liitetty valmiit pohjat tuotantokustannusten sekä kiinteiden kustannusten laskentaan."]
[]
[null,"Kasvatusaikoja verrataan katetuottojen perusteella sekä kasvatettua eläintä, että koko navetan vuoden tulosta vertailemalla."]
[null,"Työkalu laskee halvimman seosrehuyhdistelmän molemmille kasvatusajoille Excelin Ratkaisin- ohjelmalla."]
[null,"Ratkaisijan käyttämä menetelmä on lineaarinen optimointi, joka pyrkii minimoimaan päivittäisen ruokintakustannuksen tiettyjen reunaehtojen puitteissa. "]
[null,"Reunaehtoja ovat:"]
[null,null,"Energian tarpeen täyttyminen"]
[null,null,"Pötsin valkuaistaseen oltava yli -10/ syöty kg KA"]
[null,null,"Kalsiumin tarpeen täyttyminen"]
[null,null,"Fosforin tarpeen täyttyminen"]
[null,null,"Rehuannoksen väkirehuprosentti on 20-70"]
[null,null,"Eläimen syönti on noin 2% elopainosta"]
[null,"Laskentakaavojen sekä käytön yksinkertaistamiseksi joitakin muuttujia on kiinnitetty. "]
[null,null,"Teuras% 52"]
[null,null,"Rehun D-arvo on yli 65"]
[]
[]
[]
[null,"Laskurin käyttö"]
[]
[null,"Tarvittavat tiedot syötetään ",null,null,null,"vaalean oransseihin ruutuihin."]
[]
[null,"1. Lähtötiedot"]
[null,"1. Valitse tukialue."]
[null,"2. Lisää eläinmäärä, lihan hinta, laskentakorko sekä lihantuotantoon kohdistuva työmäärä."]
[null,"3. Lisää muuttuvat- ja kiinteät kustannukset, sekä palkkatavoite. "]
[null,null,"Rehun tuotantokustannuksen laskentaan voit käyttää apuna Tuotantokustannus -välilehden laskentataulukkoa"]
[null,null,"Kiinteiden kustannusten arviointiin voi käyttää apuna Rakennus- ja koneluettelo -välilehden laskentataulukkoa"]
[]
[null,"2.Suunnittelu"]
[null,"1. Rehutaulukko:Syötä rehuarvot joko analyysin tai MTT:n rehutaulukoiden perusteella. Mikäli käytetään useampia karkea- tai väkirehuja, pyri arvioimaan seoksen keskiarvo."]
[null,"2. Syötä loppukasvatusajan tavoitepituus kumpaankin vertailutaulukkoon."]
[null,"3. Syötä eläinten elopaino loppukasvatuskauden alussa. Oletuspaino on 220 kg."]
[null,"4. Syötä tavoiteltava teuraspaino kumpaankin vertailutaulukkoon. Laskuri huomauttaa, mikäli bruttokasvutavoite muodostuu liian suureksi. "]
[null,null,"Tällöin vähennä hieman teuraspainotavoitetta, tai lisää kasvatusaikaa, kunnes kasvunopeus on realistinen."]
[null,null,"Mikäli kasvutavoite asetetaan lähelle maksimikasvua ja rehuannoksen energiapitoisuus on vähäinen, laskuri saattaa tehdä rehuyhdistemän, jossa kaikki tavoitteet eivät täyty. "]
[null,"4. Kun lähtötiedot ovat oikein, paina optimointi- näppäintä, jolloin laskuri laskee halvimmat rehuyhdistelmät molemmile kasvatusajoille"]
[null,"5. Sivun alareunaan ilmestyy optimoitu rehuannos, sekä eläimen ravinnontarve"]
[]
[null,"3. Tulokset"]
[null,"Tulokset välilehdellä voi vertailla kasvatusajan vaikutusta tuottojen ja kustannusten muodostumiseen."]
[null,"Välilehden alalaidassa on nettotulos molemmille kasvatusajoille sekä kasvatettua eläintä, että koko kasvattamon vuosituotosta kohti."]
[]
[]
[null,"Tuotantokustannus"]
[null,"Tuotantokustannus välilehdellä voi laskea tilalla tuotetulle säilörehulle ja rehuviljalle tuotantokustannuksen."]
[null,"Kirjoita tarvittavat tiedot Määrä- ja a hinta- sarakkeisiin."]
[]
[]
[null,"Rakennus- ja koneluettelo"]
[null,"Rakennus- ja koneluettelo välilehdellä voi laskea kiinteitä kustannuksia sekä tuotantokustannusten arviointiin, että varsinaiseen suunnitteluun."]
[null,"Sivun yläreunassa voi vaihtaa käytettävää laskentakorkokantaa sekä kunnossapito- ja vakuutuskustannusten osuutta hankintahinnasta."]
[null,"1. Valitse suunniteltu kestoaika."]
[null,"2. Syötä jälleenhankintahinta"]
[null,"3. Syötä jäännösarvo% jälleenhankintahinnasta."]
[null,"4. Syötä tarvittaessa vuotuinen säilytyskustannus"]
[null,"5. Syötä käytön osuus, joka kohdistuu laskettavaan kohteeseen"]
[null,"6. Syötä koneella tehtävät peltohehtaarit."]
[]
[]
[null,"Ratkaisin- apuohjelman asentaminen"]
[]
[null,"1. Napsauta Microsoft Office -painiketta, valitse Excelin asetukset."]
[null,"2. Valitse Apuohjelmat ja valitse sitten Hallinta-ruudussa Excel-apuohjelmat."]
[null,"3. Valitse Siirry."]
[null,"4. Valitse Käytettävissä olevat apuohjelmat -ruudussa Ratkaisin-apuohjelma -valintaruutu ja napsauta OK-painiketta."]
[null,null,"Vihje: Jos Ratkaisin-valintaa ei näy Käytettävissä olevat apuohjelmat -luettelossa, etsi ohjelma valitsemalla Selaa."]
[null,"Jos näyttöön tulee sanoma, jossa sanotaan, että Ratkaisin-apuohjelma ei ole asennettuna tietokoneessasi, asenna ohjelma valitsemalla Kyllä."]
[null,"5. Kun olet ladannut Ratkaisin-apuohjelman, Ratkaisin-komento on käytettävissä Tiedot-välilehden Analyysi-ryhmässä."]
[]
[]
[null,"Osa välilehdistä on suojattu virheiden estämiseksi. Voit muokata soluja painamalla hiiren oikealla välilehteä ja valitsemalla Poista taulukon suojaus"]
[null,""]

{"sheet":"1.Lähtötiedot","index":1,"n_rows":24,"n_cols":5,"rows_kept":24,"cut":false,"hidden":false,"merged":[]}
[]
[null,"Tiedot katelaskelmaan"]
[]
[null,null,"Määrä","Yksikkö"]
[null,"Tukialue",2]
[null,"Eläinten määrä",100,"kpl"]
[null,"Lihan hinta",3.1,"€/kg"]
[null,"Laskentakorko",5,"%"]
[null,"Työtuntien määrä/v",1800,"h/v"]
[null,"Hyvinvointituki",50,"€/ey"]
[]
[null,"Muuttuvat kustannukset","Hinta"]
[null,"Säilörehun hinta/kg KA",0.12,"€/kg KA"]
[null,"Viljan hinta/ kg",0.18,"€/kg"]
[null,"Kivennäinen hinta/kg",0.55000000000000004,"€/kg"]
[null,"Vasikan hinta",191,"€/ kpl"]
[null,"Muut muuttuvat kust.",5100,"€/v","Muita muuttuvia kustannuksia ovat mm: lääkintä-, energia- ja kuivituskustannukset."]
[]
[null,"Palkkatavoite",15.5,"€/h"]
[]
[null,"Kiinteät kustannukset","Hinta"]
[null,"Navetan koneet",3200,"€/v","Kiinteisiin kustannuksiin kuuluvat korko-, poisto-, kunnossapito-, vakuutus- sekä verokustannukset."]
[null,"Rakennukset",12400,"€/v"]
[null,"Yleiskustannus",4200,"€/v","Yleiskustannuksia ovat mm: puhelin- ja kirjanpitokustannukset sekä postimaksut."]

{"sheet":"2.Suunnittelu","index":2,"n_rows":31,"n_cols":16,"rows_kept":31,"cut":false,"hidden":false,"merged":[]}
[]
[null,"Suunnittelu"]
[]
[]
[null,"Syötä taulukkoon rehuanalyysin tiedot"]
[null,"Rehut",null,"KA %","MJ","PVT","Ca","P"]
[null,"Karkearehu",null,250,11,39,3.8,3.6]
[null,"Väkirehu",null,860,12.9,-17,0.5,4.0999999999999996]
[null,"Kivennäinen",null,1000,0,0,220,0]
[]
[]
[null,"Vaihtoehto 1",null,null,null,null,null,null,null,"Vaihtoehto 2"]
[]
[null,"Loppukasvatusaika kk",null,null,null,12,null,null,null,"Loppukasvatusaika kk",null,null,null,13]
[null,"Loppukasvatusaika pv",null,null,null,{"$f":"F14*30","v":360},null,null,null,"Loppukasvatusaika pv",null,null,null,{"$f":"N14*30","v":390}]
[null,"Elopaino loppukasvatuskauden alussa",null,null,null,220,null,null,null,"Elopaino loppukasvatuskauden alussa",null,null,null,220]
[null,"Teuraspainotavoite",null,null,null,325,null,null,null,"Teuraspainotavoite",null,null,null,325]
[null,"Elopaino teurasiässä (teuras% 52)",null,null,null,{"$f":"F17*100/52","v":625},null,null,null,"Elopaino teurasiässä (teuras% 52)",null,null,null,{"$f":"N17*100/52","v":625}]
[null,"Bruttokasvu g/pv",null,null,null,{"$f":"(F18-F16)/F15*1000","v":1125},null,null,null,"Bruttokasvu g/pv",null,null,null,{"$f":"(N18-N16)/N15*1000","v":1038.4615384615386}]
[null,"Maksimikasvu",null,null,null,{"$f":"-0.7361*F21+1544.5","v":1233.49775},{"$f":"IF(F20<F19,\"Kasvunopeus liian suuri\",\"\")","v":""},null,null,"Maksimikasvu",null,null,null,{"$f":"-0.7361*N21+1544.5","v":1233.49775},{"$f":"IF(N20<N19,\"Kasvunopeus liian suuri\",\"\")","v":""}]
[null,"Eläinten keskipaino",null,null,null,{"$f":"(F18-F16)/2+F16","v":422.5},null,null,null,"Eläinten keskipaino",null,null,null,{"$f":"(N18-N16)/2+N16","v":422.5}]
[null,"Kasvatusaikakerroin",null,null,null,{"$f":"F15/360","v":1},null,null,null,"Kasvatusaikakerroin",null,null,null,{"$f":"N15/360","v":1.0833333333333333}]
[]
[]
[null,"Esimerkkiruokinta eläin/pv",null,null,null,null,null,null,null,"Esimerkkiruokinta eläin/pv"]
[null,null,"Annos","KA syönti","MJ","PVT","Ca","P ",null,null,"Annos","KA syönti","MJ","PVT","Ca","P "]
[null,"Karkearehu",{"$f":"D27/D7*1000","v":20.594199957294137},{"$f":"'Optimointi 1'!D10","v":5.1485499893235342},{"$f":"D27*E7","v":56.634049882558877},{"$f":"D27*F7","v":200.79344958361784},{"$f":"D27*G7","v":19.56448995942943},{"$f":"D27*H7","v":18.534779961564723},null,"Karkearehu",{"$f":"L27/D7*1000","v":26.434403636363651},{"$f":"'Optimointi 2'!D10","v":6.6086009090909128},{"$f":"L27*E7","v":72.69461000000004},{"$f":"L27*F7","v":257.73543545454561},{"$f":"L27*G7","v":25.112683454545468},{"$f":"L27*H7","v":23.790963272727286}]
[null,"Väkirehu",{"$f":"D28/D8*1000","v":3.9089553017350993},{"$f":"'Optimointi 1'!C10","v":3.3617015594921851},{"$f":"D28*E8","v":43.365950117449188},{"$f":"D28*F8","v":-57.148926511367144},{"$f":"D28*G8","v":1.6808507797460925},{"$f":"D28*H8","v":13.782976393917957},null,"Väkirehu",{"$f":"L28/D8*1000","v":2.010581395348837},{"$f":"'Optimointi 2'!C10","v":1.7290999999999999},{"$f":"L28*E8","v":22.305389999999999},{"$f":"L28*F8","v":-29.394699999999997},{"$f":"L28*G8","v":0.86454999999999993},{"$f":"L28*H8","v":7.0893099999999984}]
[null,"Kivennäinen",{"$f":"D29","v":0.13524845118570278},{"$f":"'Optimointi 1'!E10","v":0.13524845118570278},{"$f":"D29*E9","v":0},{"$f":"D29*F9","v":0},{"$f":"D29*G9","v":29.754659260854613},{"$f":"D29*H9","v":0},null,"Kivennäinen",{"$f":"L29","v":0.11373984793388428},{"$f":"'Optimointi 2'!E10","v":0.11373984793388428},{"$f":"L29*E9","v":0},{"$f":"L29*F9","v":0},{"$f":"L29*G9","v":25.022766545454541},{"$f":"L29*H9","v":0}]
[null,"Yhteensä",{"$f":"SUM(C27:C29)","v":24.638403710214938},{"$f":"SUM(D27:D29)","v":8.645500000001423},100.00000000000807,143.64452307225071,51.000000000030134,32.317756355482679,null,"Yhteensä",{"$f":"SUM(K27:K29)","v":28.558724879646373},{"$f":"SUM(L27:L29)","v":8.4514407570247965},95.000000000000043,228.34073545454561,51.000000000000014,30.880273272727283]
[null,"Tarve",null,{"$f":"0.0116*F21+3.7445","v":8.6455000000000002},{"$f":"INDEX('Ruokintasuositukset ja tuet'!B7:N20,(VLOOKUP(F21,'Ruokintasuositukset ja tuet'!K44:M57,3,TRUE)),(VLOOKUP(F19,'Ruokintasuositukset ja tuet'!L44:M57,2,TRUE)))","v":100},{"$f":"-10*D31","v":-86.454999999999998},{"$f":"VLOOKUP(F21,'Ruokintasuositukset ja tuet'!R28:V33,2,TRUE)","v":51},{"$f":"VLOOKUP(F21,'Ruokintasuositukset ja tuet'!R28:V33,3,TRUE)","v":28},null,"Tarve",null,{"$f":"0.0116*N21+3.7445","v":8.6455000000000002},{"$f":"INDEX('Ruokintasuositukset ja tuet'!B7:N20,VLOOKUP(N21,'Ruokintasuositukset ja tuet'!K44:M57,3,TRUE),VLOOKUP(N19,'Ruokintasuositukset ja tuet'!L44:M57,2,TRUE))","v":95},{"$f":"-10*L31","v":-86.454999999999998},{"$f":"VLOOKUP(N21,'Ruokintasuositukset ja tuet'!R28:V33,2,TRUE)","v":51},{"$f":"VLOOKUP(N21,'Ruokintasuositukset ja tuet'!R28:V33,3,TRUE)","v":28}]

{"sheet":"3.Tulokset","index":3,"n_rows":30,"n_cols":10,"rows_kept":30,"cut":false,"hidden":false,"merged":[]}
[]
[null,"Katteiden vertailu",null,null,null,{"$f":"'2.Suunnittelu'!F14","v":12},"KK",null,{"$f":"'2.Suunnittelu'!N14","v":13},"KK"]
[]
[null,null,"a hinta (€)","Yksikkö",null,"Määrä","Yhteensä",null,"Määrä","Yhteensä"]
[null,"Tuotot"]
[null,"Liha",{"$f":"'1.Lähtötiedot'!C7","v":3.1},"kg",null,{"$f":"'2.Suunnittelu'!F17","v":325},{"$f":"C6*F6","v":1007.5},null,{"$f":"'2.Suunnittelu'!N17","v":325},{"$f":"C6*I6","v":1007.5}]
[null,"Tilatuen lisäosa",40,"kpl",null,{"$f":"'2.Suunnittelu'!F22","v":1},{"$f":"C7*F7","v":40},null,{"$f":"'2.Suunnittelu'!N22","v":1.0833333333333333},{"$f":"C7*I7","v":43.333333333333329}]
[null,"Sonnipalkkio",{"$f":"'Ruokintasuositukset ja tuet'!D43","v":132},"eläin/v",null,{"$f":"'2.Suunnittelu'!F22","v":1},{"$f":"C8*F8","v":132},null,{"$f":"'2.Suunnittelu'!N22","v":1.0833333333333333},{"$f":"C8*I8","v":143}]
[null,"Kansallinen ey tuki",{"$f":"VLOOKUP('1.Lähtötiedot'!C5,'Ruokintasuositukset ja tuet'!C44:D45,2)","v":258},"eläin/v",null,{"$f":"'2.Suunnittelu'!F22","v":1},{"$f":"C9*F9","v":258},null,{"$f":"'2.Suunnittelu'!N22","v":1.0833333333333333},{"$f":"C9*I9","v":279.5}]
[null,"Hyvinvointituki",{"$f":"'1.Lähtötiedot'!C10*0.6","v":30},"eläin/v",null,{"$f":"'2.Suunnittelu'!F22","v":1},{"$f":"C10*F10","v":30},null,{"$f":"'2.Suunnittelu'!N22","v":1.0833333333333333},{"$f":"C10*I10","v":32.5}]
[null,"Katetuotto 1",null,null,null,null,{"$f":"SUM(G6:G10)","v":1467.5},null,null,{"$f":"SUM(J6:J10)","v":1505.8333333333333}]
[null,"Muuttuvat kulut"]
[null,"Karkearehut",{"$f":"'1.Lähtötiedot'!C13","v":0.12},"kg KA",null,{"$f":"'2.Suunnittelu'!D27*(360*'2.Suunnittelu'!F22)","v":1853.4779961564723},{"$f":"C13*F13","v":222.41735953877665},null,{"$f":"'2.Suunnittelu'!L27*(360*'2.Suunnittelu'!N22)","v":2577.3543545454559},{"$f":"C13*I13","v":309.2825225454547}]
[null,"Väkirehut",{"$f":"'1.Lähtötiedot'!C14","v":0.18},"kg  ",null,{"$f":"'2.Suunnittelu'!D28*(360*'2.Suunnittelu'!F22)","v":1210.2125614171866},{"$f":"C14*F14","v":217.8382610550936},null,{"$f":"'2.Suunnittelu'!L28*(360*'2.Suunnittelu'!N22)","v":674.34899999999993},{"$f":"C14*I14","v":121.38281999999998}]
[null,"Kivennäinen",{"$f":"'1.Lähtötiedot'!C15","v":0.55000000000000004},"kg",null,{"$f":"'2.Suunnittelu'!D29*(360*'2.Suunnittelu'!F22)","v":48.689442426852999},{"$f":"C15*F15","v":26.77919333476915},null,{"$f":"'2.Suunnittelu'!L29*(360*'2.Suunnittelu'!N22)","v":44.358540694214867},{"$f":"C15*I15","v":24.397197381818177}]
[null,"Rehut yhteensä",null,null,null,null,{"$f":"SUM(G13:G15)","v":467.03481392863944},null,null,{"$f":"SUM(J13:J15)","v":455.06253992727284}]
[null,"Uudistus",{"$f":"'1.Lähtötiedot'!C16","v":191},"kpl",null,1,{"$f":"C17*F17","v":191},null,1,{"$f":"C17*I17","v":191}]
[null,"Muut muuttuvat kustannukset",{"$f":"'1.Lähtötiedot'!C17/'1.Lähtötiedot'!C6","v":51},"yks",null,{"$f":"'2.Suunnittelu'!F22","v":1},{"$f":"C18*F18","v":51},null,{"$f":"'2.Suunnittelu'!N22","v":1.0833333333333333},{"$f":"C18*I18","v":55.249999999999993}]
[null,"Eläinpääoman korko",{"$f":"'1.Lähtötiedot'!C16","v":191},"yks",null,{"$f":"'1.Lähtötiedot'!C8*F2/12","v":5},{"$f":"C19*F19/100","v":9.5500000000000007},null,{"$f":"'1.Lähtötiedot'!C8*I2/12","v":5.416666666666667},{"$f":"C19*I19/100","v":10.345833333333335}]
[null,"Liikepääoman korko (60%)",null,"eur",{"$f":"0.6*(SUM(G13,G14,G15,G18,G23))","v":478.22088835718364},{"$f":"'1.Lähtötiedot'!C8*F2/12","v":5},{"$f":"E20*F20/100","v":23.911044417859184},{"$f":"0.6*(SUM(J13,J14,J15,J18,J23))","v":487.53752395636366},{"$f":"'1.Lähtötiedot'!C8*I2/12","v":5.416666666666667},{"$f":"H20*I20/100","v":26.408282547636368}]
[null,"Muuttuvat kulut yhteensä",null,null,null,null,{"$f":"SUM(G16:G20)","v":742.49585834649861},null,null,{"$f":"SUM(J16:J20)","v":738.06665580824256}]
[null,"Katetuotto 2",null,null,null,null,{"$f":"G11-G21","v":725.00414165350139},null,null,{"$f":"J11-J21","v":767.7666775250907}]
[null,"Palkka",{"$f":"'1.Lähtötiedot'!C19","v":15.5},"€/h",null,{"$f":"'1.Lähtötiedot'!C9/'1.Lähtötiedot'!C6*'2.Suunnittelu'!F22","v":18},{"$f":"C23*F23","v":279},null,{"$f":"'1.Lähtötiedot'!C9/'1.Lähtötiedot'!C6*'2.Suunnittelu'!N22","v":19.5},{"$f":"C23*I23","v":302.25}]
[null,"Katetuotto 3",null,null,null,null,{"$f":"G22-G23","v":446.00414165350139},null,null,{"$f":"J22-J23","v":465.5166775250907}]
[null,"Kiinteät kustannukset"]
[null,"Koneet",{"$f":"'1.Lähtötiedot'!C22/'1.Lähtötiedot'!C6","v":32},"eur",null,{"$f":"'2.Suunnittelu'!F22","v":1},{"$f":"C26*F26","v":32},null,{"$f":"'2.Suunnittelu'!N22","v":1.0833333333333333},{"$f":"C26*I26","v":34.666666666666664}]
[null,"Rakennukset",{"$f":"'1.Lähtötiedot'!C23/'1.Lähtötiedot'!C6","v":124},"eur",null,{"$f":"'2.Suunnittelu'!F22","v":1},{"$f":"C27*F27","v":124},null,{"$f":"'2.Suunnittelu'!N22","v":1.0833333333333333},{"$f":"C27*I27","v":134.33333333333331}]
[null,"Yleiskustannus",{"$f":"'1.Lähtötiedot'!C24/'1.Lähtötiedot'!C6","v":42},"eur",null,{"$f":"'2.Suunnittelu'!F22","v":1},{"$f":"C28*F28","v":42},null,{"$f":"'2.Suunnittelu'!N22","v":1.0833333333333333},{"$f":"C28*I28","v":45.5}]
[null,"Nettovoitto/tappio kasvatettua eläintä kohti",null,null,null,null,{"$f":"G24-G26-G27-G28","v":248.00414165350139},null,null,{"$f":"J24-J26-J27-J28","v":251.0166775250907}]
[null,"Nettovoitto/tappio, kasvattamo/v",null,null,null,null,{"$f":"'1.Lähtötiedot'!C6*'3.Tulokset'!G29/'2.Suunnittelu'!F22","v":24800.414165350139},null,null,{"$f":"'1.Lähtötiedot'!C6*'3.Tulokset'!J29/'2.Suunnittelu'!N22","v":23170.770233085299}]

{"sheet":"Optimointi 1","index":4,"n_rows":12,"n_cols":7,"rows_kept":12,"cut":false,"hidden":false,"merged":[]}
[]
[null,"Optimointi 1"]
[]
[null,null,"väkirehut","karkearehu","Kivennäinen","tarve"]
[null,"energia",{"$f":"'2.Suunnittelu'!E8","v":12.9},{"$f":"'2.Suunnittelu'!E7","v":11},{"$f":"'2.Suunnittelu'!E9","v":0},{"$f":"'2.Suunnittelu'!E31","v":100}]
[null,"PVT",{"$f":"'2.Suunnittelu'!F8","v":-17},{"$f":"'2.Suunnittelu'!F7","v":39},{"$f":"'2.Suunnittelu'!F9","v":0},{"$f":"-10*'2.Suunnittelu'!D31","v":-86.454999999999998}]
[null,"Ca",{"$f":"'2.Suunnittelu'!G8","v":0.5},{"$f":"'2.Suunnittelu'!G7","v":3.8},{"$f":"'2.Suunnittelu'!G9","v":220},{"$f":"'2.Suunnittelu'!G31","v":51}]
[null,"P ",{"$f":"'2.Suunnittelu'!H8","v":4.0999999999999996},{"$f":"'2.Suunnittelu'!H7","v":3.6},{"$f":"'2.Suunnittelu'!H9","v":0},{"$f":"'2.Suunnittelu'!H31","v":28}]
[null,"rajoite",0.2,0.3]
[null,"annos",3.3617015594921851,5.1485499893235342,0.13524845118570278,{"$f":"'2.Suunnittelu'!D31","v":8.6455000000000002},"kg/ka pv"]
[null,"hinta",{"$f":"'1.Lähtötiedot'!C14","v":0.18},{"$f":"'1.Lähtötiedot'!C13","v":0.12},{"$f":"'1.Lähtötiedot'!C15","v":0.55000000000000004}]
[null,"R-kust",{"$f":"C10*C11+D10*D11+E10*E11","v":1.2973189275795538}]

{"sheet":"Optimointi 2","index":5,"n_rows":12,"n_cols":7,"rows_kept":12,"cut":false,"hidden":false,"merged":[]}
[]
[null,"Optimointi 2"]
[]
[null,null,"Väkirehut","Karkearehut","Kivennäinen","tarve"]
[null,"energia",{"$f":"'2.Suunnittelu'!E8","v":12.9},{"$f":"'2.Suunnittelu'!E7","v":11},{"$f":"'2.Suunnittelu'!E9","v":0},{"$f":"'2.Suunnittelu'!M31","v":95}]
[null,"PVT",{"$f":"'2.Suunnittelu'!F8","v":-17},{"$f":"'2.Suunnittelu'!F7","v":39},{"$f":"'2.Suunnittelu'!F9","v":0},{"$f":"-10*'2.Suunnittelu'!L31","v":-86.454999999999998}]
[null,"Ca",{"$f":"'2.Suunnittelu'!G8","v":0.5},{"$f":"'2.Suunnittelu'!G7","v":3.8},{"$f":"'2.Suunnittelu'!G9","v":220},{"$f":"'2.Suunnittelu'!O31","v":51}]
[null,"P ",{"$f":"'2.Suunnittelu'!H8","v":4.0999999999999996},{"$f":"'2.Suunnittelu'!H7","v":3.6},{"$f":"'2.Suunnittelu'!H9","v":0},{"$f":"'2.Suunnittelu'!P31","v":28}]
[null,"rajoite",0.2,0.3]
[null,"annos",1.7290999999999999,6.6086009090909128,0.11373984793388428,{"$f":"'2.Suunnittelu'!L31","v":8.6455000000000002},"kg/ka pv"]
[null,"hinta",{"$f":"'1.Lähtötiedot'!C14","v":0.18},{"$f":"'1.Lähtötiedot'!C13","v":0.12},{"$f":"'1.Lähtötiedot'!C15","v":0.55000000000000004}]
[null,"R-kust",{"$f":"C10*C11+D10*D11+E10*E11","v":1.1668270254545459}]

{"sheet":"Ruokintasuositukset ja tuet","index":6,"n_rows":57,"n_cols":22,"rows_kept":57,"cut":false,"hidden":true,"merged":[[34,0,34,4],[14,15,22,15],[15,18,15,21],[24,0,24,12],[24,15,32,15],[25,1,25,12],[25,18,25,21],[29,0,29,12],[0,0,0,6],[1,0,1,6],[3,0,3,13],[3,15,3,21],[4,1,4,13],[4,15,12,15],[5,18,5,21]]}
["Lihanautojen ruokintasuunnitelma"]
["Ruokintasuositukset"]
[]
["Energiasuositukset",null,null,null,null,null,null,null,null,null,null,null,null,null,null,"Kivennäissuositukset"]
[null,"Kasvu, g/pv",null,null,null,null,null,null,null,null,null,null,null,null,null,"Lisäkasvu 0,5 kg/pv"]
["Elopaino, kg",800,900,1000,1100,1200,1300,1400,1500,1600,1700,1800,1900,2000,null,null,null,"Elopaino,","Kivennäissuositus, g/pv"]
["100-150",39,41,43,46,49,52,55,58,62,67,null,null,null,null,null,null,"kg","Ca","P","Mg","Na"]
["150-200",48,50,53,56,59,63,67,71,75,80,86,null,null,null,null,null,100,15,9,3,3]
["200-250",56,59,62,66,69,73,78,82,87,93,99,106,null,null,null,null,200,18,10,5,5]
["250-300",64,68,71,75,79,84,88,94,99,105,112,120,128,null,null,null,300,21,12,7,6]
["300-350",72,76,80,84,88,93,99,104,111,117,125,133,143,null,null,null,400,27,13,8,8]
["350-400",79,83,88,92,97,103,108,115,122,129,137,146,157,null,null,null,500,33,14,10,10]
["400-450",86,91,95,100,106,112,118,125,132,140,149,159,170,null,null,null,600,38,16,12,12]
["450-500",93,98,103,108,114,120,127,134,142,151,161,171,183]
["500-550",100,105,110,116,122,129,136,144,152,161,172,183,195,null,"Lisäkasvu 1,0 kg/pv"]
["550-600",106,111,117,123,130,137,145,153,162,171,182,194,207,null,null,null,"Elopaino,","Kivennäissuositus, g/pv"]
["600-650",112,118,124,130,137,145,153,161,171,181,193,205,219,null,null,null,"kg","Ca","P","Mg","Na"]
["650-700",118,124,131,137,145,152,161,170,180,191,202,215,null,null,null,null,100,27,16,5,3]
["700-750",124,130,137,144,152,160,169,178,188,200,212,null,null,null,null,null,200,30,17,6,5]
["750-800",130,136,143,151,159,167,176,186,197,208,null,null,null,null,null,null,300,33,19,8,7]
[null,null,null,null,null,null,null,null,null,null,null,null,null,null,null,null,null,400,37,20,10,9]
[null,null,null,null,null,null,null,null,null,null,null,null,null,null,null,null,null,500,40,22,12,11]
[null,null,null,null,null,null,null,null,null,null,null,null,null,null,null,null,null,600,44,24,13,13]
[]
["Valkuaissuositukset",null,null,null,null,null,null,null,null,null,null,null,null,null,null,"Lisäkasvu 1,5 kg/pv"]
[null,"Kasvu, g/pv",null,null,null,null,null,null,null,null,null,null,null,null,null,null,null,"Elopaino,","Kivennäissuositus, g/pv"]
["Elopaino, kg",500,600,700,800,900,1000,1100,1200,1300,1400,1500,1600,null,null,null,null,"kg","Ca","P","Mg","Na"]
["100-150",204,227,251,275,299,323,347,370,394,418,442,466,null,null,null,null,100,40,23,6,4]
["150-200",239,264,290,315,341,366,391,417,442,467,493,518,null,null,null,null,200,44,25,8,6]
[null,null,null,null,null,null,null,null,null,null,null,null,null,null,null,null,null,300,46,26,9,8]
[null,null,null,null,null,null,null,null,null,null,null,null,null,null,null,null,null,400,51,28,11,10]
[null,null,null,null,null,null,null,null,null,null,null,null,null,null,null,null,null,500,54,30,13,12]
[null,null,null,null,null,null,null,null,null,null,null,null,null,null,null,null,null,600,57,32,15,14]
[]
["Vasikoiden ruokintasuositukset"]
["Ikä, kk","Elopaino, kg","Kasvu, g/pv","MJ ME/pv","g OIV/pv"]
["0-1",50,"400 - 600",15,180]
["1.-2",70,"800 - 1000",25,260]
["2.-3",90,"800 - 1000",30,300]
[]
[]
[" ",null,"Tukialue","Sonni "]
["EU nautapalkkio €/eläin",null,"c1-c2",132,null,null,null,null,null,null,"Elopaino, kg","Kasvu","sarakehakunumero"]
["3)    Pohj. tuki/ eläin/ vuosi","C1",1,{"$f":"D48*0.6","v":253.2},null,null,null,null,null,null,100,750,1]
[" 3)   Pohj. tuki/ eläin/ vuosi","C2",2,{"$f":"0.6*D49","v":258},null,null,null,null,null,null,150,850,2]
[null,null,null,null,null,null,null,null,null,null,200,950,3]
["Eu nautapalkkio €/ey",null,"c1-c2",220,null,null,null,null,null,null,250,1050,4]
[" poh-joinen tuki €/eläin-yksikkö",null,"c1",422,null,null,null,null,null,null,300,1150,5]
["  poh-joinen tuki €/ eläin-yksikkö",null,"c2",430,null,null,null,null,null,null,350,1250,6]
[null,null,null,null,null,null,null,null,null,null,400,1350,7]
[null,null,null,null,null,null,null,null,null,null,450,1450,8]
[null,null,null,null,null,null,null,null,null,null,500,1550,9]
[null,null,null,null,null,null,null,null,null,null,550,1650,10]
[null,null,null,null,null,null,null,null,null,null,600,1750,11]
[null,null,null,null,null,null,null,null,null,null,650,1850,12]
[null,null,null,null,null,null,null,null,null,null,700,1950,13]
[null,null,null,null,null,null,null,null,null,null,750,null,14]

{"sheet":"Tuotantokustannus","index":7,"n_rows":51,"n_cols":12,"rows_kept":51,"cut":false,"hidden":false,"merged":[[1,1,1,4]]}
[]
[null,"Katetuotto- ja tuotantokustannuslaskelma"]
[null,"Tuotot ja kustannukset €/ha"]
[]
[null,"Rehuvilja","Määrä","Yksikkö","a hinta","Yhteensä €/ha/v",null,"Säilörehu","Määrä","Yksikkö","a hinta","Yhteensä €/ha/v"]
[null,"Tuotot:",null,null,null,null,null,"Tuotot:"]
[null,"Rehuvilja sato ",0,"kg",0,{"$f":"C7*E7","v":0},null,"Nurmisato (kuiva-ainesato!)",0,"kg/KA",0,{"$f":"I7*K7","v":0}]
[null,null,null,"kg",0,{"$f":"C8*E8","v":0},null,null,0,"kg",0,{"$f":"I8*K8","v":0}]
[null,"Tilatuki",1,"ha",0,0,null,"Tilatuki",1,"ha",0,0]
[null,"Lfa-tuki",1,"ha",0,0,null,"Lfa-tuki",1,"ha",0,0]
[null,"Ympäristötuki",1,"ha",0,0,null,"Ympäristötuki",1,"ha",0,0]
[null,"Pohj.tuki",1,"ha",0,0,null,"Pohj.tuki",1,"ha",0,0]
[null,"Yleinen ha tuki",1,"ha",0,0,null,"Yleinen ha tuki",1,"ha",0,0]
[null,"Tilatuen tuotantopalkkio",1,"ha",0,0,null,"Tilatuen tuotantopalkkio",1,"ha",0,0]
[null,"Luomutuki",1,"ha",0,0,null,"Luomutuki",1,"ha",0,0]
[null,"Tuotot yhteensä",null,null,null,{"$f":"SUM(F7:F15)","v":0},null,"Tuotot yhteensä",null,null,null,{"$f":"SUM(L7:L15)","v":0}]
[null,"Muuttuvat kustannukset:",null,null,null,null,null,"Muuttuvat kustannukset:"]
[null,"Ostosiemen",0,"kg",0,{"$f":"C18*E18","v":0},null,"Ostosiemen",0,"kg",0,{"$f":"I18*K18","v":0}]
[null,"Oma siemen",0,"kg",0,{"$f":"C19*E19","v":0},null,"Oma siemen",0,"kg",0,{"$f":"I19*K19","v":0}]
[null,"Kalkitus",0,"t",0,0,null,"Kalkitus",0,"t",0,0]
[null,"Traktorityö",0,"h",0,0,null,"Traktorityö",0,"h",0,0]
[null,"Leikkuupuinti",0,"h",0,0,null,"Leikkuupuinti",0,"h",0,0]
[null,"Kuivatus",0,"kg",0,0,null,"Kuivatus",0,"kg",0,0]
[null,"Rahti- ja välityspalkkio",0,"kg",0,0,null,"Rahti- ja välityspalkkio",0,"kg",0,0]
[null,"Luomutarkastusmaksu",0,null,0,0,null,"Luomutarkastusmaksu",0,null,0,0]
[null,null,null,null,null,{"$f":"SUM(F18:F25)","v":0},null,null,null,null,null,{"$f":"SUM(L18:L25)","v":0}]
[null,"Liikepääoman korko",{"$f":"D27*(F26+F30)","v":0},0.6,0.05,{"$f":"C27*E27","v":0},null,"Liikepääoman korko",{"$f":"J27*(L26+L30)","v":0},0.6,0.05,{"$f":"I27*K27","v":0}]
[null,"Muuttuvat kustannukset yhteensä:",null,null,null,{"$f":"SUM(F26:F27)","v":0},null,"Muuttuvat kustannukset yhteensä:",null,null,null,{"$f":"SUM(L26:L27)","v":0}]
[null,"KATETUOTTO 1",null,null,null,{"$f":"F16-F28","v":0},null,"KATETUOTTO 1",null,null,null,{"$f":"L16-L28","v":0}]
[null,"Työkustannus",0,"h",15.5,{"$f":"C30*E30","v":0},null,"Työkustannus",0,"h",15.5,{"$f":"I30*K30","v":0}]
[null,"KATETUOTTO 2",null,null,null,{"$f":"F29-F30","v":0},null,"KATETUOTTO 2",null,null,null,{"$f":"L29-L30","v":0}]
[null,"Kone-,rakennus- ja yleiskustannukset",null,null,null,null,null,"Kone-,rakennus- ja yleiskustannukset"]
[null,"Traktori",1,"ha",0,{"$f":"C33*E33","v":0},null,"Traktori",1,"ha",0,{"$f":"I33*K33","v":0}]
[null,"Puimuri",1,"ha",0,{"$f":"C34*E34","v":0},null,"Puimuri",1,"ha",0,{"$f":"I34*K34","v":0}]
[null,"Kuivurin koneet",1,"ha",0,0,null,"Kuivurin koneet",1,"ha",0,0]
[null,"Muut koneet",1,"ha",0,0,null,"Muut koneet",1,"ha",0,0]
[null,"Konekustannukset yhteensä",null,null,null,{"$f":"SUM(F33:F36)","v":0},null,"Konekustannukset yhteensä",null,null,null,{"$f":"SUM(L33:L36)","v":0}]
[null,"Kuivurirakennus",1,"ha",0,{"$f":"C38*E38","v":0},null,"Kuivurirakennus",1,"ha",0,{"$f":"I38*K38","v":0}]
[null,"Konehalli",1,"ha",0,{"$f":"C39*E39","v":0},null,"Konehalli",1,"ha",0,{"$f":"I39*K39","v":0}]
[null,"Rakennskustannukset yhteensä",1,"ha",0,0,null,"Rakennskustannukset yhteensä",1,"ha",0,0]
[null,"Yleiskustannukset",1,"ha",0,0,null,"Yleiskustannukset",1,"ha",0,0]
[null,"Kone-,rakennus- ja yleiskustannukset yht.",null,null,null,{"$f":"SUM(F37:F41)","v":0},null,"Kone-,rakennus- ja yleiskustannukset yht.",null,null,null,{"$f":"SUM(L37:L41)","v":0}]
[null,"KATETUOTTO 3",null,null,null,{"$f":"F31-F42","v":0},null,"KATETUOTTO 3",null,null,null,{"$f":"L31-L42","v":0}]
[null,"Pellon kustannukset",1,"ha",0,{"$f":"C44*E44","v":0},null,"Pellon kustannukset",1,"ha",0,{"$f":"I44*K44","v":0}]
[null,"Pellon korko",1,"ha",0,{"$f":"C45*E45","v":0},null,"Pellon korko",1,"ha",0,{"$f":"I45*K45","v":0}]
[null,"Salaojituksen kustannukset",1,"ha",0,0,null,"Salaojituksen kustannukset",1,"ha",0,0]
[null,"Pellon kustannukset yhteensä",null,null,null,{"$f":"SUM(F44,F45,F46)","v":0},null,"Pellon kustannukset yhteensä",null,null,null,{"$f":"SUM(L44,L45,L46)","v":0}]
[null,"Nettovoitto/tappio (yrittäjätulo)",null,null,null,{"$f":"F43-F47","v":0},null,"Nettovoitto/tappio (yrittäjätulo)",null,null,null,{"$f":"L43-L47","v":0}]
[null,"Tuotantokustannus €/ha",null,null,null,{"$f":"SUM(F28,F30,F42,F47)","v":0},null,"Tuotantokustannus €/ha",null,null,null,{"$f":"SUM(L28,L30,L42,L47)","v":0}]
[null,"Tuotantokustannus €/kg",null,null,null,{"$f":"F49/C7","v":{"$error":"#DIV/0!"}},null,"Tuotantokustannus €/kg",null,null,null,{"$f":"L49/I7","v":{"$error":"#DIV/0!"}}]
[null,"Tuettu tuotantokustannus €/kg","tuet €/kg",{"$f":"(SUM(F9:F15))/C7","v":{"$error":"#DIV/0!"}},null,{"$f":"F50-D51","v":{"$error":"#DIV/0!"}},null,"Tuettu tuotantokustannus €/kg","tuet €/kg",{"$f":"(SUM(L9:L15))/I7","v":{"$error":"#DIV/0!"}},null,{"$f":"L50-J51","v":{"$error":"#DIV/0!"}}]

{"sheet":"Rakennus- ja koneluettelo","index":8,"n_rows":32,"n_cols":16,"rows_kept":32,"cut":false,"hidden":false,"merged":[]}
[]
[null,"Kone- ja rakennusluettelo ja rakennusten vuotuiset kustannukset"]
[]
[null,"Laskentakorko",0.05]
[null,"Kunnossapitokustannus",0.02,"hankintahinnasta"]
[null,"Vakuutuskustannus",5.0000000000000001E-3,"hankintahinnasta"]
[]
[null,"Rakennnusluettelo","Kestoaika","Jälleenhankinta-arvo","JA% JHA:sta","Jäännös arvo","Korko €/v","Poisto €/v","Kunnossapito €/v","Vakuutus €/v","Säilytys","Vuotuiskustannus yhteensä €/v","Navetan/ peltyön osuus kustannuksista","Vuotuiskustannus yhteensä","Pellon määrä/laskettava kone","Kustannukset/ ha"]
[null,"Kuivaamo",null,null,null,{"$f":"Taulukko1[[#This Row],[Jälleenhankinta-arvo]]*Taulukko1[[#This Row],[JA% JHA:sta]]","v":0},{"$f":"$C$4*(Taulukko1[[#This Row],[Jälleenhankinta-arvo]]+Taulukko1[[#This Row],[Jäännös arvo]])/2","v":0},{"$f":"(Taulukko1[[#This Row],[Jälleenhankinta-arvo]]-Taulukko1[[#This Row],[Jäännös arvo]])/Taulukko1[[#This Row],[Kestoaika]]","v":{"$error":"#DIV/0!"}},{"$f":"$C$5*Taulukko1[[#This Row],[Jälleenhankinta-arvo]]","v":0},{"$f":"$C$6*Taulukko1[[#This Row],[Jälleenhankinta-arvo]]","v":0},null,{"$f":"SUM(G9:K9)","v":{"$error":"#DIV/0!"}},0,{"$f":"Taulukko1[[#This Row],[Vuotuiskustannus yhteensä €/v]]*Taulukko1[[#This Row],[Navetan/ peltyön osuus kustannuksista]]","v":{"$error":"#DIV/0!"}},null,{"$f":"Taulukko1[[#This Row],[Vuotuiskustannus yhteensä]]/Taulukko1[[#This Row],[Pellon määrä/laskettava kone]]","v":{"$error":"#DIV/0!"}}]
[null,"Rehuvarasto",null,null,null,{"$f":"Taulukko1[[#This Row],[Jälleenhankinta-arvo]]*Taulukko1[[#This Row],[JA% JHA:sta]]","v":0},{"$f":"$C$4*(Taulukko1[[#This Row],[Jälleenhankinta-arvo]]+Taulukko1[[#This Row],[Jäännös arvo]])/2","v":0},{"$f":"(Taulukko1[[#This Row],[Jälleenhankinta-arvo]]-Taulukko1[[#This Row],[Jäännös arvo]])/Taulukko1[[#This Row],[Kestoaika]]","v":{"$error":"#DIV/0!"}},{"$f":"$C$5*Taulukko1[[#This Row],[Jälleenhankinta-arvo]]","v":0},{"$f":"$C$6*Taulukko1[[#This Row],[Jälleenhankinta-arvo]]","v":0},null,{"$error":"#DIV/0!"},0,{"$f":"Taulukko1[[#This Row],[Vuotuiskustannus yhteensä €/v]]*Taulukko1[[#This Row],[Navetan/ peltyön osuus kustannuksista]]","v":{"$error":"#DIV/0!"}},null,{"$f":"Taulukko1[[#This Row],[Vuotuiskustannus yhteensä]]/Taulukko1[[#This Row],[Pellon määrä/laskettava kone]]","v":{"$error":"#DIV/0!"}}]
[null,"Kuivaamo",null,null,null,{"$f":"Taulukko1[[#This Row],[Jälleenhankinta-arvo]]*Taulukko1[[#This Row],[JA% JHA:sta]]","v":0},{"$f":"$C$4*(Taulukko1[[#This Row],[Jälleenhankinta-arvo]]+Taulukko1[[#This Row],[Jäännös arvo]])/2","v":0},{"$f":"(Taulukko1[[#This Row],[Jälleenhankinta-arvo]]-Taulukko1[[#This Row],[Jäännös arvo]])/Taulukko1[[#This Row],[Kestoaika]]","v":{"$error":"#DIV/0!"}},{"$f":"$C$5*Taulukko1[[#This Row],[Jälleenhankinta-arvo]]","v":0},{"$f":"$C$6*Taulukko1[[#This Row],[Jälleenhankinta-arvo]]","v":0},null,{"$error":"#DIV/0!"},0,{"$f":"Taulukko1[[#This Row],[Vuotuiskustannus yhteensä €/v]]*Taulukko1[[#This Row],[Navetan/ peltyön osuus kustannuksista]]","v":{"$error":"#DIV/0!"}},null,{"$f":"Taulukko1[[#This Row],[Vuotuiskustannus yhteensä]]/Taulukko1[[#This Row],[Pellon määrä/laskettava kone]]","v":{"$error":"#DIV/0!"}}]
[null,null,null,null,null,{"$f":"Taulukko1[[#This Row],[Jälleenhankinta-arvo]]*Taulukko1[[#This Row],[JA% JHA:sta]]","v":0},{"$f":"$C$4*(Taulukko1[[#This Row],[Jälleenhankinta-arvo]]+Taulukko1[[#This Row],[Jäännös arvo]])/2","v":0},{"$f":"(Taulukko1[[#This Row],[Jälleenhankinta-arvo]]-Taulukko1[[#This Row],[Jäännös arvo]])/Taulukko1[[#This Row],[Kestoaika]]","v":{"$error":"#DIV/0!"}},{"$f":"$C$5*Taulukko1[[#This Row],[Jälleenhankinta-arvo]]","v":0},{"$f":"$C$6*Taulukko1[[#This Row],[Jälleenhankinta-arvo]]","v":0},null,{"$error":"#DIV/0!"},0,{"$f":"Taulukko1[[#This Row],[Vuotuiskustannus yhteensä €/v]]*Taulukko1[[#This Row],[Navetan/ peltyön osuus kustannuksista]]","v":{"$error":"#DIV/0!"}},null,{"$f":"Taulukko1[[#This Row],[Vuotuiskustannus yhteensä]]/Taulukko1[[#This Row],[Pellon määrä/laskettava kone]]","v":{"$error":"#DIV/0!"}}]
[null,null,null,null,null,{"$f":"Taulukko1[[#This Row],[Jälleenhankinta-arvo]]*Taulukko1[[#This Row],[JA% JHA:sta]]","v":0},{"$f":"$C$4*(Taulukko1[[#This Row],[Jälleenhankinta-arvo]]+Taulukko1[[#This Row],[Jäännös arvo]])/2","v":0},{"$f":"(Taulukko1[[#This Row],[Jälleenhankinta-arvo]]-Taulukko1[[#This Row],[Jäännös arvo]])/Taulukko1[[#This Row],[Kestoaika]]","v":{"$error":"#DIV/0!"}},{"$f":"$C$5*Taulukko1[[#This Row],[Jälleenhankinta-arvo]]","v":0},{"$f":"$C$6*Taulukko1[[#This Row],[Jälleenhankinta-arvo]]","v":0},null,{"$error":"#DIV/0!"},0,{"$f":"Taulukko1[[#This Row],[Vuotuiskustannus yhteensä €/v]]*Taulukko1[[#This Row],[Navetan/ peltyön osuus kustannuksista]]","v":{"$error":"#DIV/0!"}},null,{"$f":"Taulukko1[[#This Row],[Vuotuiskustannus yhteensä]]/Taulukko1[[#This Row],[Pellon määrä/laskettava kone]]","v":{"$error":"#DIV/0!"}}]
[null,"Koneluettelo",null,null,null,{"$f":"Taulukko1[[#This Row],[Jälleenhankinta-arvo]]*Taulukko1[[#This Row],[JA% JHA:sta]]","v":0},{"$f":"$C$4*(Taulukko1[[#This Row],[Jälleenhankinta-arvo]]+Taulukko1[[#This Row],[Jäännös arvo]])/2","v":0},{"$f":"(Taulukko1[[#This Row],[Jälleenhankinta-arvo]]-Taulukko1[[#This Row],[Jäännös arvo]])/Taulukko1[[#This Row],[Kestoaika]]","v":{"$error":"#DIV/0!"}},{"$f":"$C$5*Taulukko1[[#This Row],[Jälleenhankinta-arvo]]","v":0},{"$f":"$C$6*Taulukko1[[#This Row],[Jälleenhankinta-arvo]]","v":0},null,{"$error":"#DIV/0!"},0,{"$f":"Taulukko1[[#This Row],[Vuotuiskustannus yhteensä €/v]]*Taulukko1[[#This Row],[Navetan/ peltyön osuus kustannuksista]]","v":{"$error":"#DIV/0!"}},null,{"$f":"Taulukko1[[#This Row],[Vuotuiskustannus yhteensä]]/Taulukko1[[#This Row],[Pellon määrä/laskettava kone]]","v":{"$error":"#DIV/0!"}}]
[null,"Navetan koneet",null,null,null,{"$f":"Taulukko1[[#This Row],[Jälleenhankinta-arvo]]*Taulukko1[[#This Row],[JA% JHA:sta]]","v":0},{"$f":"$C$4*(Taulukko1[[#This Row],[Jälleenhankinta-arvo]]+Taulukko1[[#This Row],[Jäännös arvo]])/2","v":0},{"$f":"(Taulukko1[[#This Row],[Jälleenhankinta-arvo]]-Taulukko1[[#This Row],[Jäännös arvo]])/Taulukko1[[#This Row],[Kestoaika]]","v":{"$error":"#DIV/0!"}},{"$f":"$C$5*Taulukko1[[#This Row],[Jälleenhankinta-arvo]]","v":0},{"$f":"$C$6*Taulukko1[[#This Row],[Jälleenhankinta-arvo]]","v":0},null,{"$f":"SUM(G15:K15)","v":{"$error":"#DIV/0!"}},0,{"$f":"Taulukko1[[#This Row],[Vuotuiskustannus yhteensä €/v]]*Taulukko1[[#This Row],[Navetan/ peltyön osuus kustannuksista]]","v":{"$error":"#DIV/0!"}},null,{"$f":"Taulukko1[[#This Row],[Vuotuiskustannus yhteensä]]/Taulukko1[[#This Row],[Pellon määrä/laskettava kone]]","v":{"$error":"#DIV/0!"}}]
[null,"Traktori",null,null,null,{"$f":"Taulukko1[[#This Row],[Jälleenhankinta-arvo]]*Taulukko1[[#This Row],[JA% JHA:sta]]","v":0},{"$f":"$C$4*(Taulukko1[[#This Row],[Jälleenhankinta-arvo]]+Taulukko1[[#This Row],[Jäännös arvo]])/2","v":0},{"$f":"(Taulukko1[[#This Row],[Jälleenhankinta-arvo]]-Taulukko1[[#This Row],[Jäännös arvo]])/Taulukko1[[#This Row],[Kestoaika]]","v":{"$error":"#DIV/0!"}},{"$f":"$C$5*Taulukko1[[#This Row],[Jälleenhankinta-arvo]]","v":0},{"$f":"$C$6*Taulukko1[[#This Row],[Jälleenhankinta-arvo]]","v":0},null,{"$error":"#DIV/0!"},0,{"$f":"Taulukko1[[#This Row],[Vuotuiskustannus yhteensä €/v]]*Taulukko1[[#This Row],[Navetan/ peltyön osuus kustannuksista]]","v":{"$error":"#DIV/0!"}},null,{"$f":"Taulukko1[[#This Row],[Vuotuiskustannus yhteensä]]/Taulukko1[[#This Row],[Pellon määrä/laskettava kone]]","v":{"$error":"#DIV/0!"}}]
[null,"Puimuri",null,null,null,{"$f":"Taulukko1[[#This Row],[Jälleenhankinta-arvo]]*Taulukko1[[#This Row],[JA% JHA:sta]]","v":0},{"$f":"$C$4*(Taulukko1[[#This Row],[Jälleenhankinta-arvo]]+Taulukko1[[#This Row],[Jäännös arvo]])/2","v":0},{"$f":"(Taulukko1[[#This Row],[Jälleenhankinta-arvo]]-Taulukko1[[#This Row],[Jäännös arvo]])/Taulukko1[[#This Row],[Kestoaika]]","v":{"$error":"#DIV/0!"}},{"$f":"$C$5*Taulukko1[[#This Row],[Jälleenhankinta-arvo]]","v":0},{"$f":"$C$6*Taulukko1[[#This Row],[Jälleenhankinta-arvo]]","v":0},null,{"$error":"#DIV/0!"},0,{"$f":"Taulukko1[[#This Row],[Vuotuiskustannus yhteensä €/v]]*Taulukko1[[#This Row],[Navetan/ peltyön osuus kustannuksista]]","v":{"$error":"#DIV/0!"}},null,{"$f":"Taulukko1[[#This Row],[Vuotuiskustannus yhteensä]]/Taulukko1[[#This Row],[Pellon määrä/laskettava kone]]","v":{"$error":"#DIV/0!"}}]
[null,"Aurat",null,null,null,{"$f":"Taulukko1[[#This Row],[Jälleenhankinta-arvo]]*Taulukko1[[#This Row],[JA% JHA:sta]]","v":0},{"$f":"$C$4*(Taulukko1[[#This Row],[Jälleenhankinta-arvo]]+Taulukko1[[#This Row],[Jäännös arvo]])/2","v":0},{"$f":"(Taulukko1[[#This Row],[Jälleenhankinta-arvo]]-Taulukko1[[#This Row],[Jäännös arvo]])/Taulukko1[[#This Row],[Kestoaika]]","v":{"$error":"#DIV/0!"}},{"$f":"$C$5*Taulukko1[[#This Row],[Jälleenhankinta-arvo]]","v":0},{"$f":"$C$6*Taulukko1[[#This Row],[Jälleenhankinta-arvo]]","v":0},null,{"$error":"#DIV/0!"},0,{"$f":"Taulukko1[[#This Row],[Vuotuiskustannus yhteensä €/v]]*Taulukko1[[#This Row],[Navetan/ peltyön osuus kustannuksista]]","v":{"$error":"#DIV/0!"}},null,{"$f":"Taulukko1[[#This Row],[Vuotuiskustannus yhteensä]]/Taulukko1[[#This Row],[Pellon määrä/laskettava kone]]","v":{"$error":"#DIV/0!"}}]
[null,"Äes",null,null,null,{"$f":"Taulukko1[[#This Row],[Jälleenhankinta-arvo]]*Taulukko1[[#This Row],[JA% JHA:sta]]","v":0},{"$f":"$C$4*(Taulukko1[[#This Row],[Jälleenhankinta-arvo]]+Taulukko1[[#This Row],[Jäännös arvo]])/2","v":0},{"$f":"(Taulukko1[[#This Row],[Jälleenhankinta-arvo]]-Taulukko1[[#This Row],[Jäännös arvo]])/Taulukko1[[#This Row],[Kestoaika]]","v":{"$error":"#DIV/0!"}},{"$f":"$C$5*Taulukko1[[#This Row],[Jälleenhankinta-arvo]]","v":0},{"$f":"$C$6*Taulukko1[[#This Row],[Jälleenhankinta-arvo]]","v":0},null,{"$error":"#DIV/0!"},0,{"$f":"Taulukko1[[#This Row],[Vuotuiskustannus yhteensä €/v]]*Taulukko1[[#This Row],[Navetan/ peltyön osuus kustannuksista]]","v":{"$error":"#DIV/0!"}},null,{"$f":"Taulukko1[[#This Row],[Vuotuiskustannus yhteensä]]/Taulukko1[[#This Row],[Pellon määrä/laskettava kone]]","v":{"$error":"#DIV/0!"}}]
[null,"Kylvökone",null,null,null,{"$f":"Taulukko1[[#This Row],[Jälleenhankinta-arvo]]*Taulukko1[[#This Row],[JA% JHA:sta]]","v":0},{"$f":"$C$4*(Taulukko1[[#This Row],[Jälleenhankinta-arvo]]+Taulukko1[[#This Row],[Jäännös arvo]])/2","v":0},{"$f":"(Taulukko1[[#This Row],[Jälleenhankinta-arvo]]-Taulukko1[[#This Row],[Jäännös arvo]])/Taulukko1[[#This Row],[Kestoaika]]","v":{"$error":"#DIV/0!"}},{"$f":"$C$5*Taulukko1[[#This Row],[Jälleenhankinta-arvo]]","v":0},{"$f":"$C$6*Taulukko1[[#This Row],[Jälleenhankinta-arvo]]","v":0},null,{"$error":"#DIV/0!"},0,{"$f":"Taulukko1[[#This Row],[Vuotuiskustannus yhteensä €/v]]*Taulukko1[[#This Row],[Navetan/ peltyön osuus kustannuksista]]","v":{"$error":"#DIV/0!"}},null,{"$f":"Taulukko1[[#This Row],[Vuotuiskustannus yhteensä]]/Taulukko1[[#This Row],[Pellon määrä/laskettava kone]]","v":{"$error":"#DIV/0!"}}]
[null,"Kasvinsuojeluruisku",null,null,null,{"$f":"Taulukko1[[#This Row],[Jälleenhankinta-arvo]]*Taulukko1[[#This Row],[JA% JHA:sta]]","v":0},{"$f":"$C$4*(Taulukko1[[#This Row],[Jälleenhankinta-arvo]]+Taulukko1[[#This Row],[Jäännös arvo]])/2","v":0},{"$f":"(Taulukko1[[#This Row],[Jälleenhankinta-arvo]]-Taulukko1[[#This Row],[Jäännös arvo]])/Taulukko1[[#This Row],[Kestoaika]]","v":{"$error":"#DIV/0!"}},{"$f":"$C$5*Taulukko1[[#This Row],[Jälleenhankinta-arvo]]","v":0},{"$f":"$C$6*Taulukko1[[#This Row],[Jälleenhankinta-arvo]]","v":0},null,{"$error":"#DIV/0!"},0,{"$f":"Taulukko1[[#This Row],[Vuotuiskustannus yhteensä €/v]]*Taulukko1[[#This Row],[Navetan/ peltyön osuus kustannuksista]]","v":{"$error":"#DIV/0!"}},null,{"$f":"Taulukko1[[#This Row],[Vuotuiskustannus yhteensä]]/Taulukko1[[#This Row],[Pellon määrä/laskettava kone]]","v":{"$error":"#DIV/0!"}}]
[null,"Peräkärry",null,null,null,{"$f":"Taulukko1[[#This Row],[Jälleenhankinta-arvo]]*Taulukko1[[#This Row],[JA% JHA:sta]]","v":0},{"$f":"$C$4*(Taulukko1[[#This Row],[Jälleenhankinta-arvo]]+Taulukko1[[#This Row],[Jäännös arvo]])/2","v":0},{"$f":"(Taulukko1[[#This Row],[Jälleenhankinta-arvo]]-Taulukko1[[#This Row],[Jäännös arvo]])/Taulukko1[[#This Row],[Kestoaika]]","v":{"$error":"#DIV/0!"}},{"$f":"$C$5*Taulukko1[[#This Row],[Jälleenhankinta-arvo]]","v":0},{"$f":"$C$6*Taulukko1[[#This Row],[Jälleenhankinta-arvo]]","v":0},null,{"$error":"#DIV/0!"},0,{"$f":"Taulukko1[[#This Row],[Vuotuiskustannus yhteensä €/v]]*Taulukko1[[#This Row],[Navetan/ peltyön osuus kustannuksista]]","v":{"$error":"#DIV/0!"}},null,{"$f":"Taulukko1[[#This Row],[Vuotuiskustannus yhteensä]]/Taulukko1[[#This Row],[Pellon määrä/laskettava kone]]","v":{"$error":"#DIV/0!"}}]
[null,"Yleisperäkärry",null,null,null,{"$f":"Taulukko1[[#This Row],[Jälleenhankinta-arvo]]*Taulukko1[[#This Row],[JA% JHA:sta]]","v":0},{"$f":"$C$4*(Taulukko1[[#This Row],[Jälleenhankinta-arvo]]+Taulukko1[[#This Row],[Jäännös arvo]])/2","v":0},{"$f":"(Taulukko1[[#This Row],[Jälleenhankinta-arvo]]-Taulukko1[[#This Row],[Jäännös arvo]])/Taulukko1[[#This Row],[Kestoaika]]","v":{"$error":"#DIV/0!"}},{"$f":"$C$5*Taulukko1[[#This Row],[Jälleenhankinta-arvo]]","v":0},{"$f":"$C$6*Taulukko1[[#This Row],[Jälleenhankinta-arvo]]","v":0},null,{"$error":"#DIV/0!"},0,{"$f":"Taulukko1[[#This Row],[Vuotuiskustannus yhteensä €/v]]*Taulukko1[[#This Row],[Navetan/ peltyön osuus kustannuksista]]","v":{"$error":"#DIV/0!"}},null,{"$f":"Taulukko1[[#This Row],[Vuotuiskustannus yhteensä]]/Taulukko1[[#This Row],[Pellon määrä/laskettava kone]]","v":{"$error":"#DIV/0!"}}]
[null,"Lietevaunu",null,null,null,{"$f":"Taulukko1[[#This Row],[Jälleenhankinta-arvo]]*Taulukko1[[#This Row],[JA% JHA:sta]]","v":0},{"$f":"$C$4*(Taulukko1[[#This Row],[Jälleenhankinta-arvo]]+Taulukko1[[#This Row],[Jäännös arvo]])/2","v":0},{"$f":"(Taulukko1[[#This Row],[Jälleenhankinta-arvo]]-Taulukko1[[#This Row],[Jäännös arvo]])/Taulukko1[[#This Row],[Kestoaika]]","v":{"$error":"#DIV/0!"}},{"$f":"$C$5*Taulukko1[[#This Row],[Jälleenhankinta-arvo]]","v":0},{"$f":"$C$6*Taulukko1[[#This Row],[Jälleenhankinta-arvo]]","v":0},null,{"$error":"#DIV/0!"},0,{"$f":"Taulukko1[[#This Row],[Vuotuiskustannus yhteensä €/v]]*Taulukko1[[#This Row],[Navetan/ peltyön osuus kustannuksista]]","v":{"$error":"#DIV/0!"}},null,{"$f":"Taulukko1[[#This Row],[Vuotuiskustannus yhteensä]]/Taulukko1[[#This Row],[Pellon määrä/laskettava kone]]","v":{"$error":"#DIV/0!"}}]
[null,"Tarkkuussilppuri",null,null,null,{"$f":"Taulukko1[[#This Row],[Jälleenhankinta-arvo]]*Taulukko1[[#This Row],[JA% JHA:sta]]","v":0},{"$f":"$C$4*(Taulukko1[[#This Row],[Jälleenhankinta-arvo]]+Taulukko1[[#This Row],[Jäännös arvo]])/2","v":0},{"$f":"(Taulukko1[[#This Row],[Jälleenhankinta-arvo]]-Taulukko1[[#This Row],[Jäännös arvo]])/Taulukko1[[#This Row],[Kestoaika]]","v":{"$error":"#DIV/0!"}},{"$f":"$C$5*Taulukko1[[#This Row],[Jälleenhankinta-arvo]]","v":0},{"$f":"$C$6*Taulukko1[[#This Row],[Jälleenhankinta-arvo]]","v":0},null,{"$error":"#DIV/0!"},0,{"$f":"Taulukko1[[#This Row],[Vuotuiskustannus yhteensä €/v]]*Taulukko1[[#This Row],[Navetan/ peltyön osuus kustannuksista]]","v":{"$error":"#DIV/0!"}},null,{"$f":"Taulukko1[[#This Row],[Vuotuiskustannus yhteensä]]/Taulukko1[[#This Row],[Pellon määrä/laskettava kone]]","v":{"$error":"#DIV/0!"}}]
[null,"Niittomurskain",null,null,null,{"$f":"Taulukko1[[#This Row],[Jälleenhankinta-arvo]]*Taulukko1[[#This Row],[JA% JHA:sta]]","v":0},{"$f":"$C$4*(Taulukko1[[#This Row],[Jälleenhankinta-arvo]]+Taulukko1[[#This Row],[Jäännös arvo]])/2","v":0},{"$f":"(Taulukko1[[#This Row],[Jälleenhankinta-arvo]]-Taulukko1[[#This Row],[Jäännös arvo]])/Taulukko1[[#This Row],[Kestoaika]]","v":{"$error":"#DIV/0!"}},{"$f":"$C$5*Taulukko1[[#This Row],[Jälleenhankinta-arvo]]","v":0},{"$f":"$C$6*Taulukko1[[#This Row],[Jälleenhankinta-arvo]]","v":0},null,{"$f":"SUM(G26:K26)","v":{"$error":"#DIV/0!"}},0,{"$f":"Taulukko1[[#This Row],[Vuotuiskustannus yhteensä €/v]]*Taulukko1[[#This Row],[Navetan/ peltyön osuus kustannuksista]]","v":{"$error":"#DIV/0!"}},null,{"$f":"Taulukko1[[#This Row],[Vuotuiskustannus yhteensä]]/Taulukko1[[#This Row],[Pellon määrä/laskettava kone]]","v":{"$error":"#DIV/0!"}}]
[null,null,null,null,null,{"$f":"Taulukko1[[#This Row],[Jälleenhankinta-arvo]]*Taulukko1[[#This Row],[JA% JHA:sta]]","v":0},{"$f":"$C$4*(Taulukko1[[#This Row],[Jälleenhankinta-arvo]]+Taulukko1[[#This Row],[Jäännös arvo]])/2","v":0},{"$f":"(Taulukko1[[#This Row],[Jälleenhankinta-arvo]]-Taulukko1[[#This Row],[Jäännös arvo]])/Taulukko1[[#This Row],[Kestoaika]]","v":{"$error":"#DIV/0!"}},{"$f":"$C$5*Taulukko1[[#This Row],[Jälleenhankinta-arvo]]","v":0},{"$f":"$C$6*Taulukko1[[#This Row],[Jälleenhankinta-arvo]]","v":0},null,{"$error":"#DIV/0!"},0,{"$f":"Taulukko1[[#This Row],[Vuotuiskustannus yhteensä €/v]]*Taulukko1[[#This Row],[Navetan/ peltyön osuus kustannuksista]]","v":{"$error":"#DIV/0!"}},null,{"$f":"Taulukko1[[#This Row],[Vuotuiskustannus yhteensä]]/Taulukko1[[#This Row],[Pellon määrä/laskettava kone]]","v":{"$error":"#DIV/0!"}}]
[null,null,null,null,null,{"$f":"Taulukko1[[#This Row],[Jälleenhankinta-arvo]]*Taulukko1[[#This Row],[JA% JHA:sta]]","v":0},{"$f":"$C$4*(Taulukko1[[#This Row],[Jälleenhankinta-arvo]]+Taulukko1[[#This Row],[Jäännös arvo]])/2","v":0},{"$f":"(Taulukko1[[#This Row],[Jälleenhankinta-arvo]]-Taulukko1[[#This Row],[Jäännös arvo]])/Taulukko1[[#This Row],[Kestoaika]]","v":{"$error":"#DIV/0!"}},{"$f":"$C$5*Taulukko1[[#This Row],[Jälleenhankinta-arvo]]","v":0},{"$f":"$C$6*Taulukko1[[#This Row],[Jälleenhankinta-arvo]]","v":0},null,{"$error":"#DIV/0!"},0,{"$f":"Taulukko1[[#This Row],[Vuotuiskustannus yhteensä €/v]]*Taulukko1[[#This Row],[Navetan/ peltyön osuus kustannuksista]]","v":{"$error":"#DIV/0!"}},null,{"$f":"Taulukko1[[#This Row],[Vuotuiskustannus yhteensä]]/Taulukko1[[#This Row],[Pellon määrä/laskettava kone]]","v":{"$error":"#DIV/0!"}}]
[null,null,null,null,null,{"$f":"Taulukko1[[#This Row],[Jälleenhankinta-arvo]]*Taulukko1[[#This Row],[JA% JHA:sta]]","v":0},{"$f":"$C$4*(Taulukko1[[#This Row],[Jälleenhankinta-arvo]]+Taulukko1[[#This Row],[Jäännös arvo]])/2","v":0},{"$f":"(Taulukko1[[#This Row],[Jälleenhankinta-arvo]]-Taulukko1[[#This Row],[Jäännös arvo]])/Taulukko1[[#This Row],[Kestoaika]]","v":{"$error":"#DIV/0!"}},{"$f":"$C$5*Taulukko1[[#This Row],[Jälleenhankinta-arvo]]","v":0},{"$f":"$C$6*Taulukko1[[#This Row],[Jälleenhankinta-arvo]]","v":0},null,{"$error":"#DIV/0!"},0,{"$f":"Taulukko1[[#This Row],[Vuotuiskustannus yhteensä €/v]]*Taulukko1[[#This Row],[Navetan/ peltyön osuus kustannuksista]]","v":{"$error":"#DIV/0!"}},null,{"$f":"Taulukko1[[#This Row],[Vuotuiskustannus yhteensä]]/Taulukko1[[#This Row],[Pellon määrä/laskettava kone]]","v":{"$error":"#DIV/0!"}}]
[null,null,null,null,null,{"$f":"Taulukko1[[#This Row],[Jälleenhankinta-arvo]]*Taulukko1[[#This Row],[JA% JHA:sta]]","v":0},{"$f":"$C$4*(Taulukko1[[#This Row],[Jälleenhankinta-arvo]]+Taulukko1[[#This Row],[Jäännös arvo]])/2","v":0},{"$f":"(Taulukko1[[#This Row],[Jälleenhankinta-arvo]]-Taulukko1[[#This Row],[Jäännös arvo]])/Taulukko1[[#This Row],[Kestoaika]]","v":{"$error":"#DIV/0!"}},{"$f":"$C$5*Taulukko1[[#This Row],[Jälleenhankinta-arvo]]","v":0},{"$f":"$C$6*Taulukko1[[#This Row],[Jälleenhankinta-arvo]]","v":0},null,{"$error":"#DIV/0!"},0,{"$f":"Taulukko1[[#This Row],[Vuotuiskustannus yhteensä €/v]]*Taulukko1[[#This Row],[Navetan/ peltyön osuus kustannuksista]]","v":{"$error":"#DIV/0!"}},null,{"$f":"Taulukko1[[#This Row],[Vuotuiskustannus yhteensä]]/Taulukko1[[#This Row],[Pellon määrä/laskettava kone]]","v":{"$error":"#DIV/0!"}}]
[null,null,null,null,null,{"$f":"Taulukko1[[#This Row],[Jälleenhankinta-arvo]]*Taulukko1[[#This Row],[JA% JHA:sta]]","v":0},{"$f":"$C$4*(Taulukko1[[#This Row],[Jälleenhankinta-arvo]]+Taulukko1[[#This Row],[Jäännös arvo]])/2","v":0},{"$f":"(Taulukko1[[#This Row],[Jälleenhankinta-arvo]]-Taulukko1[[#This Row],[Jäännös arvo]])/Taulukko1[[#This Row],[Kestoaika]]","v":{"$error":"#DIV/0!"}},{"$f":"$C$5*Taulukko1[[#This Row],[Jälleenhankinta-arvo]]","v":0},{"$f":"$C$6*Taulukko1[[#This Row],[Jälleenhankinta-arvo]]","v":0},null,{"$error":"#DIV/0!"},0,{"$f":"Taulukko1[[#This Row],[Vuotuiskustannus yhteensä €/v]]*Taulukko1[[#This Row],[Navetan/ peltyön osuus kustannuksista]]","v":{"$error":"#DIV/0!"}},null,{"$f":"Taulukko1[[#This Row],[Vuotuiskustannus yhteensä]]/Taulukko1[[#This Row],[Pellon määrä/laskettava kone]]","v":{"$error":"#DIV/0!"}}]
[null,null,null,null,null,{"$f":"Taulukko1[[#This Row],[Jälleenhankinta-arvo]]*Taulukko1[[#This Row],[JA% JHA:sta]]","v":0},{"$f":"$C$4*(Taulukko1[[#This Row],[Jälleenhankinta-arvo]]+Taulukko1[[#This Row],[Jäännös arvo]])/2","v":0},{"$f":"(Taulukko1[[#This Row],[Jälleenhankinta-arvo]]-Taulukko1[[#This Row],[Jäännös arvo]])/Taulukko1[[#This Row],[Kestoaika]]","v":{"$error":"#DIV/0!"}},{"$f":"$C$5*Taulukko1[[#This Row],[Jälleenhankinta-arvo]]","v":0},{"$f":"$C$6*Taulukko1[[#This Row],[Jälleenhankinta-arvo]]","v":0},null,{"$error":"#DIV/0!"},0,{"$f":"Taulukko1[[#This Row],[Vuotuiskustannus yhteensä €/v]]*Taulukko1[[#This Row],[Navetan/ peltyön osuus kustannuksista]]","v":{"$error":"#DIV/0!"}},null,{"$f":"Taulukko1[[#This Row],[Vuotuiskustannus yhteensä]]/Taulukko1[[#This Row],[Pellon määrä/laskettava kone]]","v":{"$error":"#DIV/0!"}}]